Cogmind - Beta 15 @@@ ROGUE MODE // 2025.08.07 @ 12:55:25 Player: Inverisimilidude Result: Destroyed by S-27 Virus with Autogun Performance ------------- Evolutions (5) 2500 Regions Visited (12) 2400 Robots Destroyed (39) 195 Value Destroyed (1005) 1005 Prototype IDs (2) 40 Alien Tech Used (0) 0 Bonus (630) 630 TOTAL SCORE: 6770 Bonus ------- Follower Combat Kills 30 Met Imprinter 300 Was Imprinted 300 Cogmind --------- Core Integrity 0/1000 Matter 300/300 Energy 98/100 System Corruption 4% Temperature Cool (0) Movement Core (50) Location -5/Factory Parts ------- > --- POWER (2) -------- (None) > --- PROPULSION (7) --- (None) > --- UTILITY (6) ------ Advanced System Shield > --- WEAPON (2) ------- (None) > --- INVENTORY (5) ---- Improved Ion Engine Advanced ECM Suite Proton Missile Launcher Ripper Peak State ------------ > --- POWER ------------ Zionite Light DM Reactor > --- PROPULSION ------- VTOL Module VTOL Module VTOL Module VTOL Module Cooled VTOL Module Makeshift Flight Unit Makeshift Flight Unit > --- UTILITY ---------- Melee Analysis Suite Makeshift Cloaking Device Propulsion Shielding Improved Heavy Armor Plating > --- WEAPON ----------- (None) > --- INVENTORY -------- Improved Ion Engine Advanced ECM Suite Proton Missile Launcher Ripper [Rating: 49] Favorites ----------- Power Light Nuclear Core Engine Improved Ion Engine Power Core Light Nuclear Core Reactor Zionite Light DM Reactor Propulsion VTOL Module Treads Light Treads Wheel Wheel Flight Unit VTOL Module Utility Large Storage Unit Device Sensor Array Storage Large Storage Unit Processor Melee Analysis Suite Hackware Improved System Shield Protection Improved Heavy Armor Plating Weapon Shotgun Energy Gun EM Pulse Gun Ballistic Gun Shotgun Ballistic Cannon Light Cannon Launcher Grenade Launcher Special Weapon Mining Laser Impact Weapon Makeshift Hammer Slashing Weapon Ripper Build | -11 -10 -10 -10 -8 -7 -6 -6 -6 -6 -6 -5 -5 ------- Run | Yrd Mat Min Sub Mat Fac Fac Low Low Zio Dee Pro Fac Slots Evolved 10 | . . . . 4 2 2 . . . . . 2 Power 1 | . . . . . . . . . . . . 1 Propulsion 5 | . . . . 2 2 1 . . . . . . Utility 4 | . . . . 2 . 1 . . . . . 1 Weapon . | . . . . . . . . . . . . . Parts Attached 51 | 7 12 2 11 . 1 1 7 4 3 1 . 2 Power 8 | 1 3 . 2 . . . 1 . . 1 . . Engine 5 | 1 2 . 2 . . . . . . . . . Core 2 | . 1 . . . . . 1 . . . . . Reactor 1 | . . . . . . . . . . 1 . . Propulsion 15 | 2 3 . 2 . 1 . 4 1 1 . . 1 Treads 3 | 1 1 . 1 . . . . . . . . . Leg . | . . . . . . . . . . . . . Wheel 4 | 1 2 . 1 . . . . . . . . . Hover . | . . . . . . . . . . . . . Flight 8 | . . . . . 1 . 4 1 1 . . 1 Utility 14 | 2 2 1 2 . . 1 2 2 1 . . 1 Device 4 | 1 . 1 . . . . 1 . 1 . . . Storage 2 | 1 1 . . . . . . . . . . . Processor 1 | . . . . . . . . 1 . . . . Hackware 2 | . . . . . . 1 . . . . . 1 Protection 5 | . 1 . 2 . . . 1 1 . . . . Artifact . | . . . . . . . . . . . . . Weapon 14 | 2 4 1 5 . . . . 1 1 . . . Energy Gun 2 | 1 1 . . . . . . . . . . . Energy Cannon . | . . . . . . . . . . . . . Ballistic Gun 5 | 1 2 . 2 . . . . . . . . . Ballistic Cannon 2 | . . 1 1 . . . . . . . . . Launcher 2 | . 1 . . . . . . 1 . . . . Special Weapon 1 | . . . 1 . . . . . . . . . Impact Weapon 1 | . . . 1 . . . . . . . . . Slashing Weapon 1 | . . . . . . . . . 1 . . . Piercing Weapon . | . . . . . . . . . . . . . Special Melee Weapon . | . . . . . . . . . . . . . Unidentified Prototypes 2 | . . . . . 1 . . . . 1 . . Parts Lost 22 | . 3 1 4 1 . . 1 . . 6 2 4 Power 3 | . 1 . 1 . . . . . . . 1 . Propulsion 10 | . 1 . 1 . . . . . . 4 1 3 Utility 6 | . . . 1 1 . . 1 . . 2 . 1 Weapon 3 | . 1 1 1 . . . . . . . . . Highest Loss Streak 5 | . 2 1 2 1 . . 1 . . 5 1 3 To Critical Strikes . | . . . . . . . . . . . . . Average Backups 9 | 3 10 14 14 9 5 5 5 4 5 4 4 4 Power 1 | . 1 2 1 1 1 1 1 1 1 1 1 1 Propulsion 1 | 2 2 2 1 1 1 1 1 . . . . . Utility 3 | . 3 7 5 3 2 2 2 2 2 1 1 1 Weapon 3 | . 3 3 5 3 1 1 1 1 2 2 2 2 Tool/Special . | . . . . . . . . . . . . . Unused Backups 12 | . 4 . . 3 . . . 2 1 . . 2 Power 2 | . 1 . . . . . . . . . . 1 Propulsion 1 | . . . . . . . . 1 . . . . Utility 6 | . 1 . . 2 . . . 1 1 . . 1 Weapon 3 | . 2 . . 1 . . . . . . . . Tool/Special . | . . . . . . . . . . . . . Average Slot Usage (%) 78 | . 96 99 99 42 . 6 26 55 71 74 28 7 Engine 7 | . 8 14 13 6 . . . . . . . . Core 2 | . 2 . . . . . 3 6 6 5 . . Treads 8 | . 14 14 14 6 . . . . . . . . Wheel 8 | . 14 14 14 6 . . . . . . . . Flight 11 | . . . . . . 6 18 33 44 43 20 2 Device 6 | . 6 12 10 6 . . . . . 5 . . Storage 8 | . 14 14 14 6 . . . . . . . . Processor 1 | . . . . . . . . 2 6 6 6 1 Protection 5 | . 7 1 3 . . . 1 11 13 11 . . Energy Gun 1 | . 6 . . . . . . . . . . . Ballistic Gun 9 | . 19 14 13 6 . . . . . . . . Ballistic Cannon 3 | . . 13 7 6 . . . . . . . . Launcher 2 | . 1 . 6 . . . . . . . . . Peak Build Rating 49 | 7 13 13 18 12 5 10 26 35 44 49 23 19 Average Rating 17 | 5 10 11 14 7 . 5 14 29 38 41 17 8 On Entrance 14 | . 7 12 11 12 . 5 10 26 35 39 23 11 Naked Turns 171 | . . . . 40 113 . . . . . . 18 Heaviest Build 42 | 13 40 40 42 33 . . 20 28 24 27 10 . Greatest Support 29 | 20 20 10 16 16 5 5 21 21 21 29 17 13 Greatest Overweight (x) 4 | . 4 3 4 2 . . . 1 1 . . . Average Overweight (x) . | . 2 3 2 . . . . . . . . . Largest Inventory Capacity 15 | 8 15 15 15 15 5 5 5 5 5 5 5 5 Average Capacity 10 | 7 12 15 15 11 5 5 5 5 5 5 5 5 Most Carried 15 | 5 15 15 15 12 5 5 5 5 5 4 4 4 Average Carried 9 | 3 10 14 14 9 5 5 5 4 4 4 4 3 Final Capacity 15 | 8 15 15 15 5 5 5 5 5 5 5 5 5 Final Carried 15 | 5 15 15 12 5 5 5 5 5 5 4 4 4 Class Distribution -------------------- 73% | Mutant 23% | Scavenger-Sprinter Dominant Class ---------------- Mutant | -10/Materials Mutant | -10/Mines Mutant | -10/Subcaves Mutant | -8/Materials Mutant | -7/Factory Mutant | -6/Factory Mutant | -6/Lower Caves Scavenger-Sprinter | -6/Lower Caves Scavenger-Sprinter | -6/Zion Scavenger-Sprinter | -6/Deep Caves Mutant | -5/Proximity Caves Mutant | -5/Factory Resources | -11 -10 -10 -10 -8 -7 -6 -6 -6 -6 -6 -5 -5 ----------- Run | Yrd Mat Min Sub Mat Fac Fac Low Low Zio Dee Pro Fac Matter Collected 1789 | 182 673 62 410 . . . 299 95 40 . . 28 Remotely . | . . . . . . . . . . . . . Salvage Created 1247 | 50 603 53 351 . . . . 73 . . . 117 Parts 75 | 8 29 1 31 . . . . 2 . . . 4 Haulers Intercepted 2 | . 2 . . . . . . . . . . . Recyclers Shooed 2 | 1 1 . . . . . . . . . . . Parts Field Recycled . | . . . . . . . . . . . . . Retrieved Matter . | . . . . . . . . . . . . . Parts Self-Destructed 25 | . . . 15 . . . 10 . . . . . Prevented 2 | . . . . . . . . . . . 2 . Kills | -11 -10 -10 -10 -8 -7 -6 -6 -6 -6 -6 -5 -5 ------- Run | Yrd Mat Min Sub Mat Fac Fac Low Low Zio Dee Pro Fac Combat Hostiles Destroyed 31 | . 12 2 13 . . . . 1 . . . 3 Guns 15 | . 11 . 4 . . . . . . . . . Cannons 4 | . . 1 3 . . . . . . . . . AOE 11 | . 1 1 6 . . . . . . . . 3 Classes Destroyed 10 | 1 6 . 2 . . . . 1 . . . . Worker 1 | . 1 . . . . . . . . . . . Tunneler 3 | 3 . . . . . . . . . . . . Hauler 2 | . 2 . . . . . . . . . . . Recycler 1 | . 1 . . . . . . . . . . . Watcher 1 | . 1 . . . . . . . . . . . Swarmer 13 | . 6 . 4 . . . . . . . . 3 Grunt 8 | . 6 2 . . . . . . . . . . Sentry 1 | . . . 1 . . . . . . . . . Subdweller 8 | . . . 8 . . . . . . . . . Mutant 1 | . . . . . . . . 1 . . . . Best Kill Streak 4 | 3 4 2 4 . . . . 1 . . . 3 Combat Bots Only 4 | . 4 2 4 . . . . 1 . . . 3 Max Kills in Single Turn 3 | 1 1 1 1 . . . . 1 . . . 3 Gunslinging . | . . . . . . . . . . . . . Exploded 3 | . 1 1 1 . . . . . . . . 3 Melee . | . . . . . . . . . . . . . Uniques/NPCs Destroyed . | . . . . . . . . . . . . . Combat | -11 -10 -10 -10 -8 -7 -6 -6 -6 -6 -6 -5 -5 -------- Run | Yrd Mat Min Sub Mat Fac Fac Low Low Zio Dee Pro Fac Hostile Shots Fired 409 | . 54 9 53 8 12 9 20 20 . 50 24 150 Missed 172 | . 8 3 19 1 7 5 7 8 . 25 14 75 Hits 237 | . 46 6 34 7 5 4 13 12 . 25 10 75 Projectile 237 | . 46 6 34 7 5 4 13 12 . 25 10 75 Critical Strikes 3 | . . . . . . . 1 . . . . 2 Damage Taken 3885 | . 530 111 613 114 52 28 201 118 . 749 167 1202 Core 1804 | . 124 . 66 48 34 28 120 8 . 282 88 1006 Absorbed by Shields 37 | . . . . . . . . . . . . 37 Redirected to Shielding 42 | . . . . . . . . 6 . 36 . . Core Remaining (%) 69 | 100 . . 24 91 95 . . . . . 38 . Volleys Fired 111 | 9 46 6 34 3 . . . 11 . . . 2 Largest 2 | 2 2 2 2 2 . . . 1 . . . 1 Hottest 100 | 60 63 53 100 55 . . . 39 . . . 39 Shots Fired 201 | 18 89 12 63 6 . . . 11 . . . 2 Gun 145 | 18 88 6 30 3 . . . . . . . . Cannon 26 | . . 5 18 3 . . . . . . . . Launcher 27 | . 1 1 12 . . . . 11 . . . 2 Special 3 | . . . 3 . . . . . . . . . Kinetic 129 | 9 55 11 48 6 . . . . . . . . Thermal 12 | 9 . . 3 . . . . . . . . . Explosive 14 | . 1 1 12 . . . . . . . . . Electromagnetic 46 | . 33 . . . . . . 11 . . . 2 Robot Hit Streak 18 | 5 8 4 18 2 . . . 2 . . . 3 Robot Miss Streak 4 | 2 4 1 2 2 . . . 2 . . . . Penetration Max . | . . . . . . . . . . . . . Secondary Targets . | . . . . . . . . . . . . . Shots Hit Robots 133 | 11 66 11 37 2 . . . 5 . . . 1 Core Hits 69 | 6 31 4 19 1 . . . 3 . . . 5 Critical Kills 1 | . 1 . . . . . . . . . . . Critical Parts Destroyed . | . . . . . . . . . . . . . Critical Strikes 1 | . 1 . . . . . . . . . . . Destroy 1 | . 1 . . . . . . . . . . . Melee Attacks 2 | . . . 1 . . . . . 1 . . . Impact 1 | . . . 1 . . . . . . . . . Slashing 1 | . . . . . . . . . 1 . . . Piercing . | . . . . . . . . . . . . . Sneak Attacks . | . . . . . . . . . . . . . Combat Hostiles . | . . . . . . . . . . . . . Follow-up Attacks . | . . . . . . . . . . . . . Damage Inflicted 2873 | 103 1039 233 1016 37 . . . 253 . . . 192 Guns 1435 | 103 899 85 329 19 . . . . . . . . Cannons 296 | . . 73 205 18 . . . . . . . . Explosions 1123 | . 140 75 482 . . . . 253 . . . 173 Melee . | . . . . . . . . . . . . . Ramming 19 | . . . . . . . . . . . . 19 Kinetic 1302 | 34 539 158 534 37 . . . . . . . . Thermal 209 | 69 140 . . . . . . . . . . . Explosive 557 | . . 75 482 . . . . . . . . . Electromagnetic 786 | . 360 . . . . . . 253 . . . 173 Impact . | . . . . . . . . . . . . . Slashing . | . . . . . . . . . . . . . Piercing . | . . . . . . . . . . . . . Highest Corruption 4 | . . . . . . 1 1 1 1 . . 4 Average Corruption 1 | . . . . . . 1 1 1 1 . . 2 Corruption Purged . | . . . . . . . . . . . . . Corruption Blocked . | . . . . . . . . . . . . . Effects 2 | . . . . . . . 1 . . . . 1 Message Errors 1 | . . . . . . . . . . . . 1 Matter Fused 1 | . . . . . . . 1 . . . . . Overload Shots . | . . . . . . . . . . . . . Overflow Damage 25 | . 10 . . . . . . 15 . . . . Projectiles . | . . . . . . . . . . . . . Explosions 25 | . 10 . . . . . . 15 . . . . Melee . | . . . . . . . . . . . . . Knockbacks 5 | . . 1 3 1 . . . . . . . . Impact . | . . . . . . . . . . . . . Kinetic 5 | . . 1 3 1 . . . . . . . . Secondary . | . . . . . . . . . . . . . Self-Inflicted Damage 110 | . 40 15 22 . . . . . . . . 33 Shots 4 | . 1 1 1 . . . . . . . . 1 Rammed 7 | . . . . . . . . . . . . 7 Targets Rammed 7 | . . . . . . . . . . . . 7 Kicked . | . . . . . . . . . . . . . Crushed . | . . . . . . . . . . . . . Highest Temperature 204 | 40 156 42 . 13 . . 88 45 110 204 . . Average Temperature 42 | 17 47 21 . 6 . . 37 17 53 88 . . Received Heat Transfer 681 | . 171 54 51 63 21 6 36 . . 225 9 45 Siege Activations . | . . . . . . . . . . . . . Martial Activations . | . . . . . . . . . . . . . Shielding Activations . | . . . . . . . . . . . . . Robots Disrupted . | . . . . . . . . . . . . . Combat Hostiles . | . . . . . . . . . . . . . Robots Corrupted 1 | . . . . . . . . 1 . . . . Combat Hostiles 1 | . . . . . . . . 1 . . . . Parts Fried . | . . . . . . . . . . . . . Impact Corruptions . | . . . . . . . . . . . . . Robots Melted . | . . . . . . . . . . . . . Combat Hostiles . | . . . . . . . . . . . . . Parts Melted . | . . . . . . . . . . . . . Heat Transferred 400 | 150 250 . . . . . . . . . . . Parts Sabotaged . | . . . . . . . . . . . . . Parts Stolen . | . . . . . . . . . . . . . Parts Stripped . | . . . . . . . . . . . . . Power Chain Reactions 3 | . 2 . . . . . . 1 . . . . Alert | -11 -10 -10 -10 -8 -7 -6 -6 -6 -6 -6 -5 -5 ------- Run | Yrd Mat Min Sub Mat Fac Fac Low Low Zio Dee Pro Fac Maximum Alert Level 2 | . . . . . . . . . . . . 2 Low Security (%) 96 | 100 100 100 . 100 100 100 . . . . . 59 Level 1 1 | . . . . . . . . . . . . 26 Level 2 1 | . . . . . . . . . . . . 14 Level 3 . | . . . . . . . . . . . . . Level 4 . | . . . . . . . . . . . . . Level 5 . | . . . . . . . . . . . . . High Security . | . . . . . . . . . . . . . Max Security . | . . . . . . . . . . . . . Peak Influence 450 | 5 162 54 . 35 15 2 . . . . . 450 Initial 35 | . . 6 . 35 9 2 . . . . . . Average 44 | . 55 5 . 15 2 1 . . . . . 186 Influence Increases 1382 | 15 419 58 160 30 15 . 105 . . . 30 550 Destroy 0b10 Robot/C 440 | . 240 40 100 . . . . . . . . 60 Destroy 0b10 Robot/NC 40 | 15 25 . . . . . . . . . . . Destroy Leader 86 | . 66 10 . . . . . . . . . 10 Disable Machine 60 | . 45 . . . . . . . . . . 15 Destroy Structure 21 | . 13 8 . . . . . . . . . . Partial Spotted 15 | . . . . . 15 . . . . . . . Lose Combat Pursuer 720 | . 30 . 60 30 . . 105 . . . 30 465 Influence Decreases 932 | 15 403 74 91 79 30 5 100 5 . . 30 100 Entered New Map 60 | . . 10 . 34 11 3 . 2 . . . . Time Decay 797 | 15 373 54 91 40 19 2 100 3 . . 20 80 Lost Part 75 | . 30 10 . 5 . . . . . . 10 20 Squads Dispatched 11 | . 2 . . 2 1 . . . . . . 6 Investigation 3 | . 1 . . . 1 . . . . . . 1 Extermination 1 | . . . . . . . . . . . . 1 Reinforcement 5 | . 1 . . 2 . . . . . . . 2 Assault . | . . . . . . . . . . . . . Garrison 2 | . . . . . . . . . . . . 2 Intercept . | . . . . . . . . . . . . . Searches Triggered . | . . . . . . . . . . . . . Construction Impeded 1 | . . . . . . . . . . . . 1 Haulers Reinforced . | . . . . . . . . . . . . . Active Scanning Responses . | . . . . . . . . . . . . . Cargo Convoy Interrupts . | . . . . . . . . . . . . . Stealth | -11 -10 -10 -10 -8 -7 -6 -6 -6 -6 -6 -5 -5 --------- Run | Yrd Mat Min Sub Mat Fac Fac Low Low Zio Dee Pro Fac Distress Signals 1 | . . . . 1 . . . . . . . . Communications Jammed . | . . . . . . . . . . . . . Distress Signals . | . . . . . . . . . . . . . Times Spotted 135 | . 24 1 14 5 4 1 14 7 . 10 9 46 Peak Tracking Total 16 | . 5 1 6 6 3 4 7 4 . 9 16 14 Tactical Retreats 17 | . 1 . 2 1 . . 3 . . 1 1 8 Traps | -11 -10 -10 -10 -8 -7 -6 -6 -6 -6 -6 -5 -5 ------- Run | Yrd Mat Min Sub Mat Fac Fac Low Low Zio Dee Pro Fac Traps Triggered 11 | . 4 . 3 . . 1 . . . . . 3 Indirectly 1 | . . . . . . . . . . . . 1 Trap Hack Attempts . | . . . . . . . . . . . . . Triggered . | . . . . . . . . . . . . . Disarmed . | . . . . . . . . . . . . . Reprogrammed . | . . . . . . . . . . . . . Reused . | . . . . . . . . . . . . . Traps Extracted . | . . . . . . . . . . . . . Installed . | . . . . . . . . . . . . . Triggered . | . . . . . . . . . . . . . Machines | -11 -10 -10 -10 -8 -7 -6 -6 -6 -6 -6 -5 -5 ---------- Run | Yrd Mat Min Sub Mat Fac Fac Low Low Zio Dee Pro Fac Machines Disabled 4 | . 3 . . . . . . . . . . 1 Max in Single Turn 1 | . 1 . . . . . . . . . . 1 Machines Repaired . | . . . . . . . . . . . . . Machines Dismantled . | . . . . . . . . . . . . . Machines Sabotaged . | . . . . . . . . . . . . . Overloaded Fab Kills . | . . . . . . . . . . . . . Hacking | -11 -10 -10 -10 -8 -7 -6 -6 -6 -6 -6 -5 -5 --------- Run | Yrd Mat Min Sub Mat Fac Fac Low Low Zio Dee Pro Fac Machines Accessed 7 | . 3 . 1 . 1 . . . 1 . . 1 Terminals 5 | . 3 . . . 1 . . . . . . 1 Fabricators . | . . . . . . . . . . . . . Repair Stations . | . . . . . . . . . . . . . Recycling Units . | . . . . . . . . . . . . . Scanalyzers . | . . . . . . . . . . . . . Garrison Access . | . . . . . . . . . . . . . Total Hacks 21 | . 6 . 4 . 3 . . . 4 . . 4 Successful 9 | . 1 . 4 . . . . . 4 . . . Failed 12 | . 5 . . . 3 . . . . . . 4 Catastrophic 2 | . 1 . . . . . . . . . . 1 Database Lockouts . | . . . . . . . . . . . . . Manual 10 | . 3 . . . 3 . . . 4 . . . Terminals 13 | . 6 . . . 3 . . . . . . 4 Fabricators . | . . . . . . . . . . . . . Repair Stations . | . . . . . . . . . . . . . Recycling Units . | . . . . . . . . . . . . . Scanalyzers . | . . . . . . . . . . . . . Garrison Access . | . . . . . . . . . . . . . Terminal Hacks 9 | . 1 . 4 . . . . . 4 . . . Record 4 | . . . 4 . . . . . . . . . Part Schematic 4 | . . . . . . . . . 4 . . . Robot Analysis 1 | . 1 . . . . . . . . . . . Fabricator Hacks . | . . . . . . . . . . . . . Repair Station Hacks . | . . . . . . . . . . . . . Recycling Unit Hacks . | . . . . . . . . . . . . . Scanalyzer . | . . . . . . . . . . . . . Garrison Access Hacks . | . . . . . . . . . . . . . Unauthorized Hacks . | . . . . . . . . . . . . . Terminals . | . . . . . . . . . . . . . Fabricators . | . . . . . . . . . . . . . Repair Stations . | . . . . . . . . . . . . . Recycling Units . | . . . . . . . . . . . . . Scanalyzers . | . . . . . . . . . . . . . Garrison Access . | . . . . . . . . . . . . . Data Cores Recovered . | . . . . . . . . . . . . . Used . | . . . . . . . . . . . . . Hacking Detections 5 | . 3 . . . 1 . . . . . . 1 Full Trace Events 3 | . 1 . . . 1 . . . . . . 1 Feedback Events . | . . . . . . . . . . . . . Feedback Blocked . | . . . . . . . . . . . . . Robot Schematics Acquired 3 | . . . . . . . . . 3 . . . Robots Built . | . . . . . . . . . . . . . Authchips . | . . . . . . . . . . . . . Time . | . . . . . . . . . . . . . Total Robot Build Rating . | . . . . . . . . . . . . . Part Schematics Acquired 20 | . . . . . . . . . 20 . . . Parts Built . | . . . . . . . . . . . . . Authchips . | . . . . . . . . . . . . . Time . | . . . . . . . . . . . . . Total Part Build Rating . | . . . . . . . . . . . . . Parts Repaired . | . . . . . . . . . . . . . Time . | . . . . . . . . . . . . . Parts Recycled . | . . . . . . . . . . . . . Recycled Matter . | . . . . . . . . . . . . . Retrieved Matter . | . . . . . . . . . . . . . Retrieved Components . | . . . . . . . . . . . . . Parts Scanalyzed . | . . . . . . . . . . . . . Part Schematics Acquired . | . . . . . . . . . . . . . Parts Damaged . | . . . . . . . . . . . . . Bothacking | -11 -10 -10 -10 -8 -7 -6 -6 -6 -6 -6 -5 -5 ------------ Run | Yrd Mat Min Sub Mat Fac Fac Low Low Zio Dee Pro Fac Used RIF Installer . | . . . . . . . . . . . . . Robots Hacked . | . . . . . . . . . . . . . Non-combat . | . . . . . . . . . . . . . Combat . | . . . . . . . . . . . . . Robot Hacks Applied . | . . . . . . . . . . . . . Relay Couplers Released . | . . . . . . . . . . . . . Fabnet Peak Effective % . | . . . . . . . . . . . . . Robots Rewired . | . . . . . . . . . . . . . Allies Hacked . | . . . . . . . . . . . . . Hacks Repelled . | . . . . . . . . . . . . . Allies | -11 -10 -10 -10 -8 -7 -6 -6 -6 -6 -6 -5 -5 -------- Run | Yrd Mat Min Sub Mat Fac Fac Low Low Zio Dee Pro Fac Total Allies 10 | . . 1 . . . . . . 9 . . . Largest Group 9 | . . 1 1 . . . . . 9 9 . . Highest-Rated Group 289 | . . 31 31 . . . . . 289 289 . . Highest-Rated Ally 41 | . . 31 31 . . . . . 41 41 . . Total Orders . | . . . . . . . . . . . . . Ally Attacks 43 | . . . 6 . . . . . . 37 . . Total Damage 519 | . . . 106 . . . . . . 413 . . Kills 3 | . . . 1 . . . . . . 2 . . Allies Corrupted . | . . . . . . . . . . . . . Allies Melted . | . . . . . . . . . . . . . Intel | -11 -10 -10 -10 -8 -7 -6 -6 -6 -6 -6 -5 -5 ------- Run | Yrd Mat Min Sub Mat Fac Fac Low Low Zio Dee Pro Fac Active Infowar (turns) 2445 | 24 548 536 1240 68 . . . . 1 28 . . Sensors 1844 | . . 536 1240 68 . . . . . . . . Seismic 572 | 24 548 . . . . . . . . . . . Cloaking 29 | . . . . . . . . . 1 28 . . Robot Analysis Total 1 | . 1 . . . . . . . . . . . Derelict Logs Recovered 4 | . . 1 . . . . 1 1 . . 1 . Drone Launches . | . . . . . . . . . . . . . Drone Recoveries . | . . . . . . . . . . . . . Exploration | -11 -10 -10 -10 -8 -7 -6 -6 -6 -6 -6 -5 -5 ------------- Run | Yrd Mat Min Sub Mat Fac Fac Low Low Zio Dee Pro Fac Turns Passed 5776 | 132 1162 574 1686 112 131 25 332 491 523 352 85 171 Spaces Moved 7759 | 64 803 429 1161 126 245 66 1099 1320 1485 414 244 303 Core 466 | 3 2 . . 81 197 . . . . . . 183 Treads 69 | 53 16 . . . . . . . . . . . Legs . | . . . . . . . . . . . . . Wheels 2428 | 8 785 429 1161 45 . . . . . . . . Hover . | . . . . . . . . . . . . . Flight 4796 | . . . . . 48 66 1099 1320 1485 414 244 120 Fastest Speed 23 | 50 95 125 115 50 35 35 23 23 23 27 32 32 Average Speed 59 | 144 115 125 127 78 47 35 28 24 23 31 34 45 Slowest Speed 250 | 160 250 125 140 130 50 35 35 100 100 35 35 50 Overloaded Moves . | . . . . . . . . . . . . . Propulsion Burnouts . | . . . . . . . . . . . . . Robots Hopped 14 | . . . . . 2 . . 2 . . . 10 Potential Cave-ins . | . . . . . . . . . . . . . Cave-ins Triggered . | . . . . . . . . . . . . . Exploration Rate (%) 50 | 4 82 76 64 22 11 4 87 97 91 60 42 13 Regions Visited 12 Branch Regions 7 Pre-discovered Areas 6 | . . 1 . . . . 1 . 3 . 1 . Known Exits Taken . | . . . . . . . . . . . . . Unknown Exits Taken 12 | 1 1 1 1 1 1 1 1 1 1 1 1 . Scrap Searched 19 | . . . 8 . . . 3 2 4 . 2 . Spaces Dug 1 | . . . 1 . . . . . . . . . Terrain Destroyed 68 | . 12 8 47 . . . . 1 . . . . Melee 1 | . . . 1 . . . . . . . . . Projectile . | . . . . . . . . . . . . . AOE 67 | . 12 8 46 . . . . 1 . . . . Terrain Rammed . | . . . . . . . . . . . . . Walls Destroyed . | . . . . . . . . . . . . . Machines Disabled . | . . . . . . . . . . . . . Actions | -11 -10 -10 -10 -8 -7 -6 -6 -6 -6 -6 -5 -5 --------- Run | Yrd Mat Min Sub Mat Fac Fac Low Low Zio Dee Pro Fac Total 8688 | 84 948 454 1293 132 257 66 1116 1472 1663 636 243 324 Wait 684 | . 51 16 64 4 14 . 8 131 172 219 . 5 Move 7722 | 63 802 428 1160 125 240 65 1098 1315 1484 413 243 286 Hop 11 | . . . . . 2 . . 2 . . . 7 Pick Up 30 | 5 18 1 3 . . . . 3 . . . . Fast Attach 34 | 7 9 . . . 1 1 8 3 2 1 . 2 Attach 14 | . 3 1 4 . . . . 2 1 1 . 2 Detach 6 | . . . . . . . . 2 2 . . 2 Swap 32 | . 7 2 23 . . . . . . . . . Drop 24 | . 12 . 4 . . . 2 3 1 2 . . Fire 111 | 9 46 6 34 3 . . . 11 . . . 2 Melee 2 | . . . 1 . . . . . 1 . . . Ram 7 | . . . . . . . . . . . . 7 Kick . | . . . . . . . . . . . . . Crush . | . . . . . . . . . . . . . Escape Stasis 11 | . . . . . . . . . . . . 11 Rewire . | . . . . . . . . . . . . . Trap . | . . . . . . . . . . . . . Miscellaneous . | . . . . . . . . . . . . . Route ------- -11/Scrapyard -10/Materials (discovered 3 exits: [*Mat x2] / [*Min]) -10/Mines (discovered 2 exits: [*Mat] / *Sub) -10/Subcaves (discovered 2 exits: *Mat / [*Scr]) -8/Materials -7/Factory -6/Factory -6/Lower Caves -6/Lower Caves (discovered 2 exits: *Fac / *Zio) -6/Zion (discovered 2 exits: [*Dee] / [*Pro]) -6/Deep Caves -5/Proximity Caves -5/Factory History --------- Turn | Location | Event 12 | -11/Scrapyard | Discovered new exit (range 16) 133 | -11/Scrapyard | Entered Materials 259 | -10/Materials | Discovered new exit (range 15) 328 | -10/Materials | Build established: Mutant 619 | -10/Materials | Discovered new exit (range 13) 912 | -10/Materials | Discovered new exit (range 10) 1295 | -10/Materials | Entered Mines 1459 | -10/Mines | Learned location of Zion (-6) 1785 | -10/Mines | Discovered new exit (range 6) 1813 | -10/Mines | Discovered new exit (range 8) 1815 | -10/Mines | Received a Mining Laser from a helpful Derelict 1869 | -10/Mines | Entered Subcaves 1869 | -10/Subcaves | Accompanied by 1 ally 1870 | -10/Subcaves | Approached by a straggling Scientist 1890 | -10/Subcaves | Scientist uncovered a shortcut to Scraptown 1995 | -10/Subcaves | Core integrity fell below 50% 2466 | -10/Subcaves | Curiously followed by a Cobbler waking with a query about "LVR3C" 2553 | -10/Subcaves | Shifting Twisted Machinery released Sub. Laser 2554 | -10/Subcaves | Shifting Twisted Machinery released Spk. Treads 2671 | -10/Subcaves | Ambushed by Subdwellers from Twisted Machinery 2884 | -10/Subcaves | Discovered new exit (range 10) 2894 | -10/Subcaves | Shifting Twisted Machinery released Sub. Beam Cannon 2906 | -10/Subcaves | Shifting Twisted Machinery released Flamer 3343 | -10/Subcaves | Visited Clippyterm 3347 | -10/Subcaves | Learned Factory trap positions 3347 | -10/Subcaves | Learned Factory fabricator intel 3555 | -10/Subcaves | Entered Materials 3555 | -8/Materials | Evolved 4 slots: Propulsion x2, Utility x2 3627 | -8/Materials | Released all parts (6) 3659 | -8/Materials | Discovered new exit (range 16) 3667 | -8/Materials | Entered Factory 3667 | -7/Factory | Evolved 2 slots: Propulsion x2 3668 | -7/Factory | Loaded intel: 121 trap records 3669 | -7/Factory | Loaded intel: 6 fabricator locations 3778 | -7/Factory | Discovered new exit (range 7) 3798 | -7/Factory | Entered another Factory area 3798 | -6/Factory | Evolved 2 slots: Propulsion x1, Utility x1 3815 | -6/Factory | Discovered new exit (range 15) 3823 | -6/Factory | Entered Lower Caves 3921 | -6/Lower Caves | Attracted the attention of an 0b10 checkpoint 3948 | -6/Lower Caves | Encountered a Warlord checkpoint 3955 | -6/Lower Caves | Discovered new exit (range 5) 4155 | -6/Lower Caves | Entered another Lower Caves area 4161 | -6/Lower Caves | Discovered new exit (range 12) 4251 | -6/Lower Caves | Discovered new exit (range 7) 4303 | -6/Lower Caves | Encountered a Warlord checkpoint 4325 | -6/Lower Caves | Build established: Scavenger-Sprinter 4452 | -6/Lower Caves | Attacked by a faux Warlord 4646 | -6/Lower Caves | Entered Zion 4662 | -6/Zion | Acquired unknown access codes intercepted by a Zionite 4693 | -6/Zion | Discovered new exit (range 16) 4703 | -6/Zion | System corruption cleaned by Quarantine Array 4735 | -6/Zion | Learned location of Warlord (-4) 4769 | -6/Zion | Met Imprinter 4773 | -6/Zion | Imprinted 4775 | -6/Zion | Declared Zion's savior 4809 | -6/Zion | Gained Derelict followers 4992 | -6/Zion | Opened final containment barrier to the Deep Caves 4996 | -6/Zion | Discovered new exit (range 5) 4996 | -6/Zion | Saw the warning signs outside the Deep Caves entrance 5169 | -6/Zion | Entered Deep Caves 5169 | -6/Deep Caves | Accompanied by 9 allies 5453 | -6/Deep Caves | Z-Facility disabled 5505 | -6/Deep Caves | Attacked by Z-Imprinter 5507 | -6/Deep Caves | Lost 5 parts (3n2u) 5517 | -6/Deep Caves | Discovered new exit (range 10) 5520 | -6/Deep Caves | Core integrity fell below 50% 5521 | -6/Deep Caves | Entered Proximity Caves 5527 | -5/Proximity Caves | Spotted B-75 Beast 5546 | -5/Proximity Caves | Attracted the attention of an 0b10 checkpoint 5597 | -5/Proximity Caves | Discovered new exit (range 14) 5606 | -5/Proximity Caves | Entered Factory 5606 | -5/Factory | Evolved 2 slots: Power x1, Utility x1 5637 | -5/Factory | Garrison activated, responded to threat 5654 | -5/Factory | Lost 3 parts (3n) 5691 | -5/Factory | Core integrity fell below 50% 5743 | -5/Factory | Core integrity fell below 20% 5777 | -5/Factory | Destroyed by S-27 Virus with Autogun Last Messages --------------- 05723_ C-30 ARC bursts open, deploying its payload. 05723_ S-27 Virus unfolds itself. 05729_ ALERT: Potential suspicious activity detected, Programmers report to Factory Zone 1L. 05730_ Acquired 28 matter. [Achievement: Cya!] 05743_ ALERT: Hostiles spotted, dispatching reinforcements to Terminal F006. 05748_ Penetrated by Slug. 05748_ S-27 Virus destroyed. 05753_ Slug penetrates Wall. 05754_ Nuclear Pulse Array destroyed. 05756_ Slammed into K-01 Serf. 05765_ DK=UJQTXGSZLCF1I1&#CMLKGK=UE B 05765_ Slammed into K-01 Serf. 05766_ K-01 Serf latches onto Y-64 Sentinel. 05766_ K-01 Serf pushes Y-64 Sentinel. 05773_ M-13 Machinist repairs S-27 Virus. Map ----- +----------------------------------------------------+ | ########????#"" #???# ???????????????? | | ????#"Y =#???#!! """ """???????????????? | | ????#"" ????#!* """ """ ?#????????????? | | ????# ??????#! """ """ #????????????? | | ##+######### #????????????? | | "" + % / #????????????? | | "" """" ## ######### | #????????????? | | "" """"??#%/ ##/###########????????????? | | "Y """" ## # """## #??????????????????????? | | "" """" ## # """## #??????????????????????? | | "" """" ## #? """## #??????????????????????? | | "" """" ##%#? ##s#??????????????????????? | | ## #?? ## #??????????????????????? | | ######+####### #??####### #????#?????????????????? | | #### ##### ##???????# #?? #?????????????????? | | ! ######### # #?????????????????? | | / #?????????????????? | | #########s# #?????????????????? | | #### ########???????#s#?? #?????????????????? | | ######+#######??????????#s#????#?????????????????? | | # #??????????# #??????????????????????? | | # """ """ #???###????# #??????????????????????? | | # """ """ #???# ??# #??????????????????????? | | # """ """ #???# # #??????????????????????? | | # #???# + #??????????????????????? | | # =%""" #???# #@#??????????????????????? | | # """ #???# ??# #??????????????????????? | | # """ #???# ????# #??????????????????????? | | # " " #???#??????# #??????????????????????? | | # "Y" #??????????# #??????????????????????? | | # """ #??????????# #??????????????????????? | | # #??????????# #??????????????????????? | | ###########/##??????????# #??????????????????????? | | ??????????# #???????????# #??????????????????????? | | ??????????# #???????????? ???????????????????????? | | ??????????# #???????????? ???????????????????????? | | ??????????# #???????????? ???????????????????????? | | ??????????# #????????????#???????????????????????? | | ??????????# #????????????????????????????????????? | | ??????????# ###########??????????????????????????? | | ??????????# + #??????????????????????????? | | ??????????# # #??????????????????????????? | | ???######## # #??????????????????????????? | | # #??????????????????????????? | | ###########"#######+###??????????????????????????? | | #%#?????# #????????????????????????????? | | ! #"#????? ????????????????????????????? | | # ##### #??????????????????????????? | | | / #????????? ????????????????? | | """ # ##### #????????" #???????????????? | +----------------------------------------------------+ Best States ------------- Heat Dissipation 40 Energy Generation 27 Energy Capacity 265 Matter Stores 300 Matter Capacity 300 Sight Range 16 Robot Scan Range 14 Terrain Scan Density 10 Cloak Strength 3 Armor Coverage 600 Propulsion Shielding 33 Evasion (%) 65 Melee Accuracy 5 Recoil Reduction 1 Defensive Hacking 14 Item Schematics ----------------- Riot Gun | -6/Zion | Free Ripper | -6/Zion | Free Arc Thrower | -6/Zion | Free Bore Cannon | -6/Zion | Free Jamming Amplifier | -6/Zion | Archive Imp. Shock Absorption System | -6/Zion | Archive Proton Cannon | -6/Zion | Archive Imp. Thermal Shield | -6/Zion | Archive Adv. Heat Sink | -6/Zion | Archive Imp. Launcher Guidance Computer | -6/Zion | Archive Phase Cannon | -6/Zion | Archive Imp. Force Field | -6/Zion | Archive Myomer Leg | -6/Zion | Archive Hvy. Pick | -6/Zion | Archive Imp. Weapon Cycler | -6/Zion | Archive Imp. Kinecellerator | -6/Zion | Archive Adv. Sensor Array | -6/Zion | Archive Imp. Medium Treads | -6/Zion | Archive Lrn. Tractor Beam | -6/Zion | Archive Hvy. Mass Driver | -6/Zion | Archive Robot Schematics ------------------ E-15 Imp | -6/Zion | Archive T-07 Excavator | -6/Zion | Archive R-10 Processor | -6/Zion | Archive Fabricated ------------ Nothing Repaired ---------- Nothing Alien Tech Used ----------------- None Achievements -------------- Cya! Challenges ------------ None Game ------ Seed GrenadeDisposableBallwheel Manual? 0 Play Time 00:51:54 Cumulative 100.8 hours Start 2025.08.07 @ 12:05:48 End 2025.08.07 @ 12:55:25 Sessions 1 Manual Loads 0 Difficulty Rogue Special Mode None Game No. 126 Rogue 126 Adventurer 0 Explorer 0 Win Type - Total 0 Types 0/0/0/0/0/0/0/0/0/0 Lore% 62 Gallery% 45 Achievement% 44 Wizard Run 0 Options --------- Layout 1 ASCII 0 Keyboard 0 Movement Arrows Keybinds 0 Fullscreen 1 Font 24/Smallcaps Map View 50x35 Zoom Use 0% Tactical HUD 1 Map Filters NONE Filters NONE Steam 1 RUN: 11b2b6e7-678c-4cb8-9c2e-0407a927c76e